bitfinex/quotes_SOLUSD_20250315
["timestamp","ask_amount","ask_price","bid_price","bid_amount"]
[1742068081504,14.60645343,134.75,134.73,7.4221]
[1742068081867,14.63645343,134.76,134.73,7.4221]
[1742068083894,14.63645343,134.76,134.73,18.64964886]
[1742068084103,14.60645343,134.75,134.73,18.64964886]
[1742068085992,14.63645343,134.76,134.73,7.422]
[1742068086799,0.03,134.76,134.73,7.422]
[1742068086967,14.63645343,134.76,134.73,7.422]
[1742068087367,0.03,134.76,134.73,7.422]
[1742068088079,0.03,134.76,134.74,18.64964886]
[1742068091977,0.0001,134.76,134.75,112.32463082]
[1742068093288,0.03,134.77,134.76,20.552072]
[1742068093496,0.03,134.77,134.76,117.88764343]
[1742068094594,7.4147,134.87,134.78,18.64964886]
[1742068094777,26.08167647,134.88,134.83,14.60645343]
[1742068094972,26.08167647,134.88,134.84,25.00964886]
[1742068095174,11.47522304,134.88,134.84,25.00964886]
[1742068095493,33.49567647,134.88,134.84,25.00964886]
[1742068095694,14.60645343,134.87,134.84,25.00964886]
[1742068096065,14.60645343,134.86,134.84,25.00964886]
[1742068096399,14.60645343,134.85,134.82,18.64964886]
[1742068096709,22.02275343,134.84,134.82,18.64964886]
[1742068097682,14.60645343,134.85,134.82,18.64964886]
[1742068098886,7.4161,134.84,134.82,18.64964886]
[1742068100201,14.60645343,134.83,134.81,82.729118]
[1742068101008,22.02255343,134.84,134.81,82.729118]
[1742068101906,7.4161,134.84,134.81,82.729118]
[1742068102090,22.02255343,134.84,134.81,82.729118]
[1742068102495,14.60645343,134.84,134.8,18.64964886]
[1742068102699,14.60645343,134.85,134.8,33.25610229]
[1742068103506,22.02255343,134.85,134.8,33.25610229]
[1742068104900,14.60645343,134.84,134.8,18.64964886]
[1742068105210,18.5376,134.87,134.8,18.64964886]
[1742068105211,14.60645343,134.82,134.8,18.64964886]
[1742068105910,14.60645343,134.82,134.78,18.64964886]
[1742068107403,22.02335343,134.83,134.78,26.06904886]
[1742068108087,22.02335343,134.83,134.78,18.64964886]
[1742068108805,22.02335343,134.83,134.78,26.06904886]
[1742068108983,14.60645343,134.8,134.78,18.64964886]
[1742068109183,14.60645343,134.81,134.78,18.64964886]
[1742068109810,22.02425343,134.81,134.78,18.64964886]
[1742068112103,14.60645343,134.81,134.78,18.64964886]
[1742068114079,14.60645343,134.81,134.78,7.4194]
[1742068115705,14.60645343,134.82,134.78,7.4194]
[1742068115911,14.60645343,134.83,134.79,18.64964886]
[1742068116792,22.02315343,134.83,134.79,18.64964886]
[1742068117702,0.03,134.81,134.79,18.64964886]
[1742068117915,0.03,134.81,134.79,26.06854886]
[1742068119718,0.03,134.81,134.79,40.67500229]
[1742068119880,0.03,134.81,134.8,41.10730229]
[1742068120083,0.03,134.81,134.8,26.50084886]
[1742068122406,0.03,134.81,134.8,18.64964886]
[1742068125213,0.03,134.81,134.8,26.06794886]
[1742068127104,0.03,134.81,134.8,18.64964886]
[1742068129720,0.03,134.81,134.8,26.06794886]
[1742068130419,0.03,134.81,134.8,18.64964886]
[1742068130631,0.03,134.81,134.8,26.06794886]
[1742068132524,0.03,134.81,134.8,40.67440229]
[1742068134811,0.03,134.81,134.8,18.64964886]
[1742068141203,14.63645343,134.81,134.79,82.729118]
[1742068142520,0.03,134.81,134.8,18.64964886]
[1742068143216,0.03,134.81,134.8,116.84369601]
[1742068144410,0.03,134.81,134.8,124.26199601]
[1742068148425,0.03,134.81,134.8,116.55937287]
[1742068148725,14.63645343,134.81,134.8,101.37876686]
[1742068149109,0.03,134.81,134.8,101.37876686]
[1742068149522,0.03,134.81,134.8,108.79706686]
[1742068149831,0.03,134.81,134.8,101.37876686]
[1742068149832,14.63645343,134.81,134.8,101.37876686]
[1742068150507,0.03,134.81,134.8,101.37876686]
[1742068151931,14.63645343,134.81,134.8,18.64964886]
[1742068152125,14.63645343,134.81,134.79,18.64964886]
[1742068152429,14.60645343,134.8,134.79,18.64964886]
[1742068153110,14.60645343,134.8,134.77,0.063]
[1742068153431,1.6185,134.81,134.77,0.063]
[1742068153432,14.60645343,134.78,134.77,0.063]
[1742068154008,22.02585343,134.78,134.77,0.063]
[1742068160042,14.60645343,134.78,134.77,0.063]
[1742068161443,9.0365,134.81,134.77,0.063]
[1742068161622,14.60645343,134.8,134.77,0.063]
[1742068162628,14.60645343,134.79,134.77,0.063]
[1742068163941,14.60645343,134.8,134.77,0.063]
[1742068164636,0.03,134.79,134.77,0.063]
[1742068164836,0.03,134.79,134.77,18.71264886]
[1742068166041,0.03,134.79,134.77,26.13234886]
[1742068166238,0.03,134.79,134.77,13.8827]
[1742068169349,0.03,134.79,134.78,33.25610229]
[1742068170543,0.03,134.79,134.78,18.64964886]
[1742068171158,14.63645343,134.79,134.78,18.64964886]
[1742068171328,0.03,134.79,134.78,18.64964886]
[1742068185648,14.63645343,134.79,134.78,18.64964886]
[1742068185850,14.63645343,134.79,134.77,0.063]
[1742068186049,14.60645343,134.78,134.77,0.063]
[1742068188070,22.02585343,134.78,134.77,0.063]
[1742068189155,14.60645343,134.78,134.77,0.063]
[1742068189670,22.05585343,134.78,134.77,0.063]
[1742068222491,23.73167844,134.78,134.77,0.063]
[1742068224004,29.63345806,134.78,134.77,0.063]
[1742068226895,22.34017657,134.78,134.77,0.063]
[1742068227097,22.05585343,134.78,134.77,0.063]
[1742068227307,14.63645343,134.78,134.77,0.063]
[1742068227607,22.05585343,134.78,134.77,0.063]
[1742068228620,22.05585343,134.78,134.77,0.063]
[1742068229108,14.63645343,134.78,134.77,0.063]
[1742068230710,22.05585343,134.78,134.77,0.063]
[1742068247537,14.63645343,134.78,134.77,0.063]
[1742068247711,0.03,134.78,134.77,0.063]
[1742068247906,0.03,134.78,134.77,22.94155343]
[1742068248111,0.03,134.78,134.77,124.32032029]
[1742068248314,0.03,134.79,134.78,18.64964886]
[1742068248519,0.03,134.79,134.78,115.98522029]
[1742068249429,0.03,134.79,134.78,101.37876686]
[1742068250131,0.03,134.79,134.78,108.79816686]
[1742068252021,0.03,134.79,134.78,26.06904886]
[1742068252418,0.03,134.79,134.77,8.3351]
[1742068252736,14.63645343,134.79,134.77,8.3351]
[1742068253529,14.60645343,134.78,134.77,8.3351]
[1742068253721,14.60645343,134.78,134.77,0.063]
[1742068259240,14.63645343,134.79,134.77,0.063]
[1742068261336,0.03,134.78,134.77,0.063]
[1742068285039,14.63645343,134.78,134.77,0.063]
[1742068286155,22.05585343,134.78,134.77,0.063]
[1742068286446,14.63645343,134.78,134.77,0.063]
[1742068301066,0.03,134.78,134.77,0.063]
[1742068305346,14.63645343,134.78,134.77,0.063]
[1742068308571,22.05585343,134.78,134.77,0.063]
[1742068312372,14.63645343,134.78,134.77,0.063]
[1742068317580,22.05585343,134.78,134.77,0.063]
[1742068318679,22.34017657,134.78,134.77,0.063]
[1742068332488,0.28432314,134.73,134.66,8.2395]
[1742068332685,14.60645343,134.69,134.67,18.64964886]
[1742068333785,14.60645343,134.68,134.67,18.64964886]
[1742068334163,14.89077657,134.68,134.66,0.063]
[1742068334366,14.60645343,134.67,134.66,0.063]
[1742068335089,16.28341106,134.67,134.66,0.063]
[1742068335496,14.89077657,134.67,134.66,0.063]
[1742068336076,14.60645343,134.67,134.66,0.063]
[1742068336275,20.0,134.68,134.66,0.063]
[1742068336511,14.60645343,134.67,134.66,0.063]
[1742068337096,78.42581372,134.68,134.66,0.063]
[1742068337390,20.0,134.68,134.66,0.063]
[1742068339698,78.42581372,134.68,134.66,0.063]
[1742068340384,1.67695164,134.67,134.66,0.063]
[1742068341099,16.28340507,134.67,134.66,0.063]
[1742068341289,14.89077657,134.67,134.66,0.063]
[1742068349205,20.0,134.68,134.66,0.063]
[1742068350001,14.60645343,134.69,134.66,0.063]
[1742068350801,14.60645343,134.68,134.66,0.063]
[1742068351386,14.60645343,134.67,134.66,0.063]
[1742068353984,20.0,134.7,134.66,0.063]
[1742068354187,14.60645343,134.69,134.66,0.063]
[1742068356516,0.03,134.72,134.67,6.0177]
[1742068356690,14.63645343,134.72,134.67,24.66734886]
[1742068357314,14.60645343,134.71,134.67,24.66734886]
[1742068357514,14.60645343,134.71,134.67,32.09234886]
[1742068358914,0.03,134.72,134.68,14.60645343]
[1742068359304,0.03,134.72,134.69,18.64964886]
[1742068359817,14.63645343,134.72,134.69,18.64964886]
[1742068362090,14.63645343,134.72,134.69,26.07404886]
[1742068362286,0.03,134.72,134.69,26.07404886]
[1742068362812,0.03,134.72,134.69,40.68050229]
[1742068363113,0.03,134.72,134.69,123.40962029]
[1742068364026,14.63645343,134.72,134.69,108.80316686]
[1742068364391,14.63645343,134.72,134.69,101.37876686]
[1742068365732,14.60645343,134.71,134.69,101.37876686]
[1742068366017,14.60645343,134.7,134.69,101.37876686]
[1742068366405,14.60645343,134.7,134.67,13.443]
[1742068366804,14.60645343,134.69,134.67,24.66734886]
[1742068366999,14.60645343,134.68,134.67,24.66734886]
[1742068367315,14.60645343,134.69,134.67,24.66734886]
[1742068367492,14.60645343,134.7,134.67,24.66734886]
[1742068368313,14.60645343,134.7,134.67,32.09274886]
[1742068370122,14.60645343,134.7,134.67,24.66734886]
[1742068372122,14.60645343,134.69,134.67,24.66734886]
[1742068374524,14.60645343,134.68,134.66,0.063]
[1742068375231,14.60645343,134.69,134.66,0.063]
[1742068375926,14.60645343,134.68,134.66,18.71264886]
[1742068376833,14.60645343,134.67,134.66,0.063]
[1742068378127,22.03195343,134.67,134.66,0.063]
[1742068378844,14.60645343,134.67,134.66,0.063]
[1742068380343,22.03105343,134.69,134.66,0.063]
[1742068381005,14.60645343,134.68,134.66,0.063]
[1742068384619,22.03145343,134.68,134.66,0.063]
[1742068384822,14.60645343,134.67,134.66,0.063]
[1742068395047,22.03195343,134.67,134.66,0.063]
[1742068395429,22.31627657,134.67,134.66,0.063]
[1742068395845,22.03195343,134.67,134.66,0.063]
[1742068396442,14.60645343,134.67,134.66,0.063]
[1742068398643,22.03195343,134.67,134.66,0.063]
[1742068401845,22.31627657,134.67,134.66,0.063]
[1742068406222,14.60645343,134.67,134.66,0.063]
[1742068406418,14.60645343,134.68,134.66,0.063]
[1742068406625,14.60645343,134.7,134.66,0.063]
[1742068406825,14.60645343,134.69,134.66,0.063]
[1742068407852,14.60645343,134.69,134.66,18.71264886]
[1742068408546,14.60645343,134.68,134.66,18.71264886]
[1742068409549,14.60645343,134.68,134.66,26.13854886]
[1742068410746,14.60645343,134.67,134.66,0.063]
[1742068411428,22.03195343,134.67,134.66,0.063]
[1742068414430,14.60645343,134.67,134.66,0.063]
[1742068429256,14.60645343,134.69,134.66,0.063]
[1742068429463,34.60645343,134.7,134.66,0.063]
[1742068430164,14.60645343,134.7,134.66,0.063]
[1742068430750,22.03035343,134.7,134.66,0.063]
[1742068431573,14.60645343,134.69,134.66,0.063]
[1742068433345,14.60645343,134.67,134.66,0.063]
[1742068435951,22.03195343,134.67,134.66,0.063]
[1742068437072,14.60645343,134.67,134.66,0.063]
[1742068441177,22.03195343,134.67,134.66,0.063]
[1742068441476,14.60645343,134.67,134.66,0.063]
[1742068443275,22.03195343,134.67,134.66,0.063]
[1742068443779,14.60645343,134.67,134.66,0.063]
[1742068461178,14.60645343,134.69,134.66,0.063]
[1742068461501,14.60645343,134.71,134.66,0.063]
[1742068461703,14.60645343,134.7,134.66,0.063]
[1742068462708,14.60645343,134.69,134.67,18.64964886]
[1742068464502,14.60645343,134.68,134.67,18.64964886]
[1742068464713,14.60645343,134.69,134.67,18.64964886]
[1742068464889,14.60645343,134.7,134.67,26.07494886]
[1742068465916,14.60645343,134.7,134.67,18.64964886]
[1742068466288,14.60645343,134.69,134.67,18.64964886]
[1742068466507,14.60645343,134.68,134.66,0.063]
[1742068466715,14.60645343,134.67,134.66,18.71264886]
[1742068468907,14.60645343,134.68,134.66,18.71264886]
[1742068470209,14.60645343,134.68,134.66,26.13854886]
[1742068470597,14.60645343,134.69,134.66,26.13854886]
[1742068471743,14.60645343,134.7,134.66,26.13854886]
[1742068474033,14.60645343,134.69,134.66,26.13854886]
[1742068477740,14.60645343,134.68,134.66,18.71264886]
[1742068478127,14.60645343,134.67,134.66,18.71264886]
[1742068478827,14.60645343,134.67,134.66,0.063]
[1742068481142,22.03195343,134.67,134.66,0.063]
[1742068482554,14.60645343,134.67,134.66,0.063]
[1742068496074,14.60645343,134.68,134.66,0.063]
[1742068496368,14.60645343,134.69,134.66,0.063]
[1742068496575,14.60645343,134.7,134.66,18.71264886]
[1742068497261,14.60645343,134.68,134.66,18.71264886]
[1742068498064,14.60645343,134.67,134.66,0.063]
[1742068502285,14.60645343,134.68,134.66,0.063]
[1742068502577,34.748615,134.69,134.66,0.063]
[1742068512283,14.60645343,134.68,134.66,0.063]
[1742068512602,22.03145343,134.68,134.66,0.063]
[1742068512806,14.60645343,134.67,134.66,0.063]
[1742068515189,22.03145343,134.68,134.66,0.063]
[1742068515513,14.60645343,134.68,134.66,0.063]
[1742068518513,22.03145343,134.68,134.66,0.063]
[1742068519915,14.60645343,134.67,134.66,0.063]
[1742068528927,14.60645343,134.68,134.66,0.063]
[1742068534027,22.03155343,134.68,134.66,0.063]
[1742068537733,14.60645343,134.68,134.66,0.063]
[1742068540927,31.35137328,134.69,134.66,0.063]
[1742068540928,14.60645343,134.67,134.66,0.063]
[1742068541545,14.60645343,134.68,134.66,0.063]
[1742068541747,22.03145343,134.68,134.66,0.063]
[1742068543638,14.60645343,134.67,134.66,0.063]
[1742068543841,22.174115,134.67,134.66,0.063]
[1742068546653,22.31627657,134.67,134.66,0.063]
[1742068548476,14.89077657,134.67,134.66,0.063]
[1742068549774,22.31627657,134.67,134.66,0.063]
[1742068552278,14.89077657,134.67,134.66,0.063]
[1742068560468,0.28432314,134.67,134.66,0.063]
[1742068563205,22.31627657,134.67,134.66,0.063]
[1742068565770,14.89077657,134.67,134.66,0.063]
[1742068573105,14.60645343,134.67,134.66,0.063]
[1742068573307,1.39254918,134.7,134.66,0.063]
[1742068573308,0.14216157,134.7,134.66,0.063]
[1742068573503,0.14216157,134.69,134.66,0.063]
[1742068574385,26.46393892,134.71,134.66,14.66945343]
[1742068575299,14.748615,134.71,134.67,7.4255]
[1742068576911,14.60645343,134.7,134.67,7.4255]
[1742068578401,14.60645343,134.71,134.66,22.09555343]
[1742068578597,0.17216157,134.72,134.68,14.60645343]
[1742068578912,0.03,134.72,134.69,22.44645343]
[1742068579309,0.03,134.72,134.69,7.84]
[1742068580621,0.03,134.72,134.69,15.2642]
[1742068580914,14.60645343,134.71,134.69,7.84]
[1742068582620,0.17216157,134.72,134.69,7.84]
[1742068582621,14.778615,134.72,134.69,7.84]
[1742068583602,14.778615,134.72,134.69,15.2644]
[1742068583805,0.17216157,134.72,134.69,15.2644]
[1742068584016,0.03,134.72,134.69,15.2644]
[1742068588820,0.03,134.72,134.69,29.87085343]
[1742068589921,0.03,134.72,134.69,15.2644]
[1742068591632,0.03,134.72,134.69,29.87085343]
[1742068592000,0.03,134.72,134.71,14.60645343]
[1742068592221,0.03,134.72,134.71,97.33557143]
[1742068593124,0.03,134.72,134.71,112.94667143]
[1742068593323,0.03,134.72,134.71,131.59632029]
[1742068600114,0.03,134.72,134.71,132.17139896]
[1742068600610,0.03,134.78,134.73,7.6344]
[1742068600912,0.03,134.78,134.76,22.02675343]
[1742068601112,0.03,134.78,134.76,104.75587143]
[1742068601310,0.03,134.78,134.77,14.60645343]
[1742068602919,0.03,134.78,134.76,104.75587143]
[1742068604827,0.03,134.78,134.77,22.02645343]
[1742068605027,0.03,134.78,134.77,48.31050229]
[1742068605236,0.03,134.78,134.77,131.03962029]
[1742068605931,0.03,134.78,134.77,90.363518]
[1742068608138,0.03,134.78,134.77,112.38997143]
[1742068610563,0.03,134.78,134.77,90.363518]
[1742068611852,0.03,134.78,134.77,82.729118]
[1742068612519,0.03,134.78,134.77,90.149118]
[1742068623679,0.0001,134.78,134.77,104.75557143]
[1742068624172,0.0001,134.78,134.77,111.25277143]
[1742068624554,0.0001,134.79,134.77,113.43927763]
[1742068624755,0.0001,134.79,134.78,14.60645343]
[1742068625486,0.0001,134.79,134.78,22.02585343]
[1742068626285,0.0001,134.79,134.78,7.4194]
[1742068626460,0.0001,134.79,134.78,22.02585343]
[1742068626657,0.0001,134.79,134.78,7.4194]
[1742068626858,0.0001,134.79,134.78,22.02585343]
[1742068629882,0.0001,134.79,134.77,112.86497143]
[1742068630088,0.0001,134.79,134.77,104.75527143]
[1742068632768,0.0001,134.79,134.78,14.60645343]
[1742068633463,0.0001,134.79,134.77,6.34]
[1742068633891,14.60655343,134.79,134.75,82.729118]
[1742068634192,14.60655343,134.79,134.76,6.34]
[1742068636190,0.14226157,134.79,134.76,6.34]
[1742068636397,0.0001,134.79,134.76,28.36695343]
[1742068636694,0.0001,134.79,134.77,14.60645343]
[1742068637995,0.0001,134.79,134.76,28.36695343]
[1742068639079,0.0001,134.79,134.76,111.09607143]
[1742068642206,0.0001,134.79,134.76,89.069118]
[1742068642592,0.0001,134.79,134.76,96.489618]
[1742068645513,14.60655343,134.79,134.76,96.489618]
[1742068645712,14.60655343,134.79,134.76,89.069118]
[1742068645907,14.60645343,134.77,134.76,82.729118]
[1742068646308,14.748615,134.78,134.76,82.729118]
[1742068646616,14.60645343,134.77,134.76,82.729118]
[1742068649118,14.748615,134.78,134.76,82.729118]
[1742068650316,22.168215,134.78,134.74,6.34]
[1742068650509,14.60645343,134.76,134.73,6.34]
[1742068650712,14.60645343,134.74,134.72,82.792118]
[1742068651009,14.60645343,134.75,134.72,82.792118]
[1742068651828,14.60645343,134.75,134.72,90.214818]
[1742068652008,0.14216157,134.75,134.72,90.214818]
[1742068652317,14.748615,134.78,134.73,14.60645343]
[1742068652506,14.60645343,134.77,134.72,104.82127143]
[1742068653423,14.60645343,134.77,134.72,90.214818]
[1742068658037,14.60645343,134.77,134.72,104.82127143]
[1742068660746,14.60645343,134.77,134.72,104.82127143]
[1742068662841,14.60645343,134.77,134.72,123.37827143]
[1742068673769,0.14226157,134.79,134.75,14.60645343]
[1742068673770,0.0001,134.79,134.75,14.60645343]
[1742068673975,0.0001,134.79,134.77,22.02645343]
[1742068675457,0.0001,134.79,134.77,7.42]
[1742068687782,14.60645343,134.78,134.76,89.069118]
[1742068688085,14.60645343,134.78,134.76,82.729118]
[1742068688995,14.60645343,134.77,134.76,82.729118]
[1742068689595,14.60645343,134.78,134.76,90.149618]
[1742068690770,14.60655343,134.79,134.76,90.149618]
[1742068691981,14.60655343,134.79,134.75,7.4211]
[1742068695677,14.60655343,134.79,134.75,7.4841]
[1742068697798,14.60645343,134.78,134.75,7.4841]
[1742068703485,14.60645343,134.77,134.75,0.063]
[1742068704216,14.89077657,134.76,134.75,0.063]
[1742068704717,14.748615,134.76,134.75,0.063]
[1742068705188,0.14216157,134.76,134.75,0.063]
[1742068705392,14.748615,134.76,134.75,0.063]
[1742068708301,14.89077657,134.76,134.75,0.063]
[1742068710024,22.31127657,134.76,134.75,0.063]
[1742068711213,20.28432314,134.73,134.72,0.063]
[1742068711397,0.49999999,134.75,134.65,13.941]
[1742068711398,14.60645343,134.68,134.65,6.5145]
[1742068711958,14.748615,134.69,134.65,6.5145]
[1742068712481,14.60645343,134.7,134.66,7.489]
[1742068712709,20.0,134.71,134.66,28.43545343]
[1742068712909,20.0,134.71,134.66,111.16457143]
[1742068713510,14.748615,134.72,134.67,14.60645343]
[1742068714394,14.748615,134.72,134.68,14.60645343]
[1742068714989,0.14216157,134.72,134.69,7.4244]
[1742068715611,14.60645343,134.73,134.69,7.4244]
[1742068718735,0.14216157,134.72,134.69,7.4244]
[1742068719034,14.748615,134.72,134.69,7.4244]
[1742068720028,14.748615,134.72,134.68,25.9873]
[1742068723025,14.748615,134.72,134.68,7.425]
[1742068723215,14.60645343,134.71,134.68,7.425]
[1742068724647,0.14216157,134.71,134.68,7.425]
[1742068725535,0.14216157,134.71,134.67,7.4255]
[1742068725740,0.14216157,134.71,134.67,25.9893]
[1742068725925,34.63645343,134.73,134.68,14.60645343]
[1742068727139,0.03,134.73,134.7,14.60645343]
[1742068727337,0.03,134.73,134.72,14.60645343]
[1742068729340,0.03,134.73,134.72,22.02925343]
[1742068729526,0.03,134.73,134.72,7.4228]
[1742068734038,0.03,134.73,134.72,22.02925343]
[1742068734656,0.03,134.73,134.72,7.4228]
[1742068736147,0.03,134.73,134.71,89.069118]
[1742068736357,0.03,134.73,134.71,6.34]
[1742068736659,14.63645343,134.73,134.7,13.5397]
[1742068738733,0.03,134.73,134.7,13.5397]
[1742068738936,0.03,134.73,134.7,28.14615343]
[1742068739358,0.03,134.73,134.7,34.48615343]
[1742068739554,0.03,134.73,134.71,14.60645343]
[1742068739733,0.03,134.73,134.72,7.4228]
[1742068740242,0.03,134.73,134.72,22.02925343]
[1742068743042,0.0001,134.79,134.73,1.5751]
[1742068743361,0.0001,134.79,134.74,14.60645343]
[1742068743545,0.0001,134.79,134.75,6.32]
[1742068743862,14.60655343,134.79,134.75,6.32]
[1742068744161,14.60655343,134.79,134.76,7.4205]
[1742068751171,14.60645343,134.78,134.75,6.32]
[1742068751871,14.60645343,134.78,134.75,13.741]
[1742068753047,14.60655343,134.79,134.75,13.741]
[1742068753752,14.60645343,134.78,134.75,13.741]
[1742068756992,14.60645343,134.78,134.75,6.32]
[1742068757180,14.60645343,134.76,134.73,82.729118]
[1742068758275,14.60645343,134.76,134.73,90.151218]
[1742068758452,14.60645343,134.77,134.73,90.151218]
[1742068760062,14.89077657,134.78,134.73,90.151218]
[1742068760569,14.60655343,134.79,134.74,14.60645343]
[1742068760754,0.0001,134.79,134.74,97.33557143]
[1742068760959,0.0001,134.79,134.75,14.60645343]
[1742068761980,0.0001,134.79,134.76,7.4205]
[1742068765273,0.0001,134.79,134.76,90.149618]
[1742068765655,0.0001,134.79,134.78,14.60645343]
[1742068765981,0.0001,134.79,134.78,40.67550229]
[1742068767577,0.0001,134.79,134.77,89.049118]
[1742068768059,0.0001,134.79,134.77,96.469018]
[1742068768261,0.0001,134.79,134.77,89.049118]
[1742068771477,0.0001,134.79,134.77,6.32]
[1742068771872,22.02545343,134.79,134.77,6.32]
[1742068772270,22.02545343,134.79,134.75,82.729118]
[1742068772473,0.0001,134.79,134.75,104.75667143]
[1742068780084,0.0001,134.79,134.75,123.30947143]
[1742068784989,14.60645343,134.78,134.75,90.150218]
[1742068787573,0.0001,134.79,134.75,90.150218]
[1742068787775,14.60655343,134.79,134.75,90.150218]
[1742068795206,0.0001,134.79,134.75,90.150218]
[1742068796506,0.0001,134.79,134.75,104.75667143]
[1742068797908,0.0001,134.79,134.75,123.30947143]
[1742068798407,0.0001,134.79,134.77,7.42]
[1742068801611,0.0001,134.79,134.77,22.02645343]
[1742068803415,0.0001,134.79,134.77,104.75557143]
[1742068804293,0.0001,134.79,134.78,14.60645343]
[1742068804810,0.0001,134.79,134.78,117.63242029]
[1742068805013,0.03,134.85,134.78,117.63242029]
[1742068805196,0.03,134.85,134.84,14.60645343]
[1742068806416,0.03,134.85,134.84,22.02255343]
[1742068806797,0.03,134.85,134.84,28.34255343]
[1742068807811,0.03,134.85,134.84,46.99220229]
[1742068808018,0.03,134.85,134.84,129.72132029]
[1742068809416,0.03,134.87,134.85,25.17164886]
[1742068809617,0.03,134.87,134.86,33.8280959]
[1742068810298,0.03,134.87,134.86,116.5272139]
[1742068810502,0.03,134.87,134.86,123.37022029]
[1742068810706,2.5336351,134.89,134.87,18.64964886]
[1742068810908,2.5336351,134.89,134.88,14.60645343]
[1742068811089,2.5336351,134.89,134.87,82.699118]
[1742068811292,17.14008853,134.89,134.87,82.699118]
[1742068812003,17.14008853,134.89,134.82,82.699118]
[1742068812004,14.89077657,134.88,134.82,82.699118]
[1742068812323,14.60645343,134.86,134.82,90.116218]
[1742068812494,14.60645343,134.88,134.83,14.60645343]
[1742068812905,14.60645343,134.87,134.82,104.72267143]
[1742068813224,14.60645343,134.88,134.83,14.60645343]
[1742068813819,14.60645343,134.88,134.83,22.02305343]
[1742068814208,17.14008853,134.89,134.83,22.02305343]
[1742068814408,17.14008853,134.89,134.84,14.60645343]
[1742068814607,14.60645343,134.88,134.83,40.67270229]
[1742068814815,14.60645343,134.87,134.82,104.72267143]
[1742068815020,14.60645343,134.86,134.82,90.116218]
[1742068815217,14.60645343,134.87,134.82,104.72267143]
[1742068815718,0.31432314,134.88,134.82,104.72267143]
[1742068815893,14.60645343,134.87,134.82,104.72267143]
[1742068817320,14.60645343,134.85,134.82,82.699118]
[1742068818109,14.60645343,134.85,134.82,90.116318]
[1742068819214,14.748615,134.86,134.82,90.116318]
[1742068821820,14.60645343,134.84,134.81,6.32]
[1742068822217,14.60645343,134.83,134.8,82.699118]
[1742068823725,14.60645343,134.83,134.8,90.117418]
[1742068824025,14.748615,134.84,134.8,90.117418]
[1742068824222,14.60645343,134.85,134.8,104.72387143]
[1742068824928,14.60645343,134.85,134.8,90.117418]
[1742068827831,14.60645343,134.85,134.8,90.180418]
[1742068828922,14.60645343,134.85,134.8,104.78687143]
[1742068829119,14.60645343,134.85,134.8,123.33277143]
[1742068830610,14.63645343,134.87,134.82,14.60645343]
[1742068831227,14.63645343,134.87,134.83,7.4167]
[1742068831424,0.03,134.87,134.83,22.02315343]
[1742068831607,0.03,134.87,134.83,28.34315343]
[1742068832128,0.03,134.87,134.83,13.7367]
[1742068832314,14.63645343,134.87,134.83,13.7367]
[1742068835229,0.03,134.87,134.83,129.58407143]
[1742068835436,0.03,134.87,134.83,135.78667143]
[1742068836510,14.63645343,134.87,134.83,102.638418]
[1742068836805,14.60645343,134.86,134.83,102.638418]
[1742068837023,0.03,134.87,134.83,6.32]
[1742068837024,14.748615,134.85,134.83,6.32]
[1742068837225,14.60645343,134.84,134.8,18.71264886]
[1742068837432,14.60645343,134.84,134.81,7.4175]
[1742068837619,14.748615,134.85,134.81,7.4175]
[1742068838716,14.60645343,134.85,134.81,7.4175]
[1742068839943,14.748615,134.86,134.83,0.063]
[1742068841818,14.63645343,134.87,134.83,7.4797]
[1742068842024,14.63645343,134.87,134.83,6.9388734]
[1742068842542,14.60645343,134.85,134.82,26.06674886]
[1742068842946,14.60645343,134.86,134.82,26.06674886]
[1742068843113,14.63645343,134.87,134.82,124.98232029]
[1742068843313,0.03,134.87,134.82,124.98232029]
[1742068843515,0.03,134.87,134.84,18.64964886]